fUSD/lending_fUSD_20241223
["ID","MTS","AMOUNT","RATE_DAILY","PERIOD"]
[346380254,1734927041953,-999.96,0.00019363,2]
[346380255,1734927041962,-999.96,0.00019363,2]
[346380256,1734927041971,-999.96,0.00019363,2]
[346380257,1734927041980,-999.96,0.00019363,2]
[346380258,1734927041989,-796.16,0.00019363,2]
[346380259,1734927041998,-500.0,0.00019363,2]
[346380260,1734927042008,-500.0,0.00019363,2]
[346380261,1734927042017,-500.0,0.00019363,2]
[346380262,1734927042028,-500.0,0.00019363,2]
[346380263,1734927042037,-500.0,0.00019363,2]
[346380264,1734927042046,-500.0,0.00019363,2]
[346380265,1734927042055,-500.0,0.00019363,2]
[346380266,1734927042064,-500.0,0.00019363,2]
[346380267,1734927042073,-500.0,0.00019363,2]
[346380268,1734927042082,-500.0,0.00019363,2]
[346380269,1734927042091,-500.0,0.00019363,2]
[346380270,1734927042100,-500.0,0.00019363,2]
[346380271,1734927042109,-500.0,0.00019363,2]
[346380272,1734927042118,-500.0,0.00019363,2]
[346380273,1734927042127,-500.0,0.00019363,2]
[346380274,1734927042137,-506.36407924,0.00019363,2]
[346380275,1734927042146,-717.13,0.00019363,2]
[346380276,1734927042154,-821.76,0.00019363,2]
[346380277,1734927042162,-500.0,0.00019363,2]
[346380278,1734927042170,-500.0,0.00019363,2]
[346380279,1734927042178,-695.53,0.00019363,2]
[346380280,1734927042187,-939.41,0.00019363,2]
[346380281,1734927042195,-500.0,0.00019363,2]
[346380282,1734927042204,-500.0,0.00019363,2]
[346380283,1734927042213,-730.76,0.00019363,2]
[346380284,1734927042222,-956.19,0.00019363,2]
[346380285,1734927042231,-500.0,0.00019363,2]
[346380286,1734927042241,-500.0,0.00019363,2]
[346380287,1734927042250,-500.0,0.00019363,2]
[346380288,1734927042259,-500.0,0.00019363,2]
[346380289,1734927042273,-500.0,0.00019363,2]
[346380290,1734927042282,-184.13407501,0.00019363,2]
[346380291,1734927042291,-500.0,0.00019363,2]
[346380292,1734927042300,-500.0,0.00019363,2]
[346380293,1734927042310,-574.87,0.00019363,2]
[346380294,1734927042319,-500.0,0.00019363,2]
[346380295,1734927042328,-589.07,0.00019363,2]
[346380296,1734927042337,-1064.24,0.00019363,2]
[346380297,1734927042348,-500.0,0.00019363,2]
[346380298,1734927042358,-500.0,0.00019363,2]
[346380299,1734927042367,-500.0,0.00019363,2]
[346380300,1734927042376,-506.41937804,0.00019363,2]
[346380301,1734927042385,-500.0,0.00019363,2]
[346380302,1734927042395,-500.0,0.00019363,2]
[346380303,1734927042405,-247.07187818,0.00019363,2]
[346380304,1734927042414,-500.0,0.00019363,2]
[346380305,1734927042423,-500.0,0.00019363,2]
[346380306,1734927042433,-901.25,0.00019363,2]
[346380307,1734927042442,-500.0,0.00019363,2]
[346380308,1734927042451,-500.0,0.00019363,2]
[346380309,1734927042461,-500.0,0.00019363,2]
[346380310,1734927042470,-500.0,0.00019363,2]
[346380311,1734927042479,-646.87,0.00019363,2]
[346380312,1734927042489,-500.0,0.00019363,2]
[346380313,1734927042499,-558.36,0.00019363,2]
[346380314,1734927042508,-500.0,0.00019363,2]
[346380315,1734927042518,-500.0,0.00019363,2]
[346380316,1734927042529,-760.17,0.00019363,2]
[346380317,1734927042539,-500.0,0.00019363,2]
[346380318,1734927042548,-500.0,0.00019363,2]
[346380319,1734927042558,-1070.8,0.00019363,2]
[346380320,1734927042568,-558.62,0.00019363,2]
[346380321,1734927042577,-500.0,0.00019363,2]
[346380322,1734927042587,-611.5,0.00019363,2]
[346380323,1734927042597,-500.0,0.00019364,2]
[346380324,1734927042607,-500.0,0.00019364,2]
[346380325,1734927042616,-500.0,0.00019364,2]
[346380326,1734927042626,-427.99488693,0.00019364,2]
[346380327,1734927042635,-500.0,0.00019364,2]
[346380328,1734927042644,-500.0,0.00019364,2]
[346380329,1734927042654,-500.0,0.00019364,2]
[346380330,1734927042663,-500.0,0.00019364,2]
[346380331,1734927042672,-500.0,0.00019364,2]
[346380332,1734927042682,-500.0,0.00019364,2]
[346380333,1734927042692,-500.0,0.00019364,2]
[346380334,1734927042701,-595.66872591,0.00019364,2]
[346380335,1734927042710,-500.0,0.00019364,2]
[346380336,1734927042721,-500.0,0.00019364,2]
[346380337,1734927042729,-500.0,0.00019364,2]
[346380338,1734927042737,-492.12798804,0.00019364,2]
[346380340,1734927042919,-500.0,0.00019364,2]
[346380341,1734927042930,-500.0,0.00019364,2]
[346380342,1734927042940,-500.0,0.00019364,2]
[346380343,1734927042950,-313.6370784,0.00019364,2]
[346380344,1734927042959,-507.79981499,0.00019364,2]
[346380345,1734927042969,-509.68161492,0.00019364,2]
[346380346,1734927042979,-500.0,0.00019364,2]
[346380347,1734927042989,-500.0,0.00019364,2]
[346380348,1734927042998,-500.0,0.00019364,2]
[346380349,1734927043008,-500.0,0.00019364,2]
[346380350,1734927043017,-500.0,0.00019364,2]
[346380351,1734927043027,-500.0,0.00019364,2]
[346380352,1734927043037,-457.05275369,0.00019364,2]
[346380353,1734927043046,-500.0,0.00019364,2]
[346380354,1734927043055,-500.0,0.00019364,2]
[346380355,1734927043064,-500.0,0.00019364,2]
[346380357,1734927043073,-500.0,0.00019364,2]
[346380358,1734927043083,-506.85311369,0.00019364,2]
[346380359,1734927043092,-503.52071004,0.00019364,2]
[346380360,1734927043102,-500.0,0.00019364,2]
[346380362,1734927043111,-510.01373901,0.00019364,2]
[346380364,1734927043120,-500.0,0.00019364,2]
[346380365,1734927043129,-500.0,0.00019364,2]
[346380367,1734927043138,-500.0,0.00019364,2]
[346380370,1734927043147,-500.0,0.00019364,2]
[346380372,1734927043157,-500.0,0.00019364,2]
[346380373,1734927043166,-500.0,0.00019364,2]
[346380374,1734927043175,-500.0,0.00019364,2]
[346380375,1734927043185,-500.0,0.00019364,2]
[346380376,1734927043193,-500.0,0.00019364,2]
[346380377,1734927043203,-500.0,0.00019364,2]
[346380378,1734927043212,-500.0,0.00019364,2]
[346380379,1734927043222,-500.0,0.00019364,2]
[346380380,1734927043231,-500.0,0.00019364,2]
[346380381,1734927043240,-514.73868056,0.00019364,2]
[346380382,1734927043250,-507.81691418,0.00019364,2]
[346380383,1734927043259,-500.0,0.00019364,2]
[346380384,1734927043272,-500.0,0.00019364,2]
[346380385,1734927043282,-500.0,0.00019364,2]
[346380386,1734927043292,-500.0,0.00019364,2]
[346380387,1734927043301,-500.0,0.00019364,2]
[346380388,1734927043311,-500.0,0.00019364,2]
[346380389,1734927043320,-500.0,0.00019364,2]
[346380390,1734927043330,-500.0,0.00019364,2]
[346380391,1734927043340,-508.08871605,0.00019364,2]
[346380392,1734927043350,-500.0,0.00019364,2]
[346380393,1734927043359,-500.0,0.00019364,2]
[346380394,1734927043368,-2100.66679364,0.00019367,2]
[346380395,1734927043377,-498.56,0.0001938,2]
[346380396,1734927043387,-500.0,0.00019395,2]
[346380397,1734927043396,-1215.49,0.00019395,2]
[346380398,1734927043405,-761.79,0.00019395,2]
[346380399,1734927043415,-1176.68,0.00019395,2]
[346380400,1734927043424,-500.0,0.00019395,2]
[346380401,1734927043433,-500.0,0.00019395,2]
[346380402,1734927043443,-541.06,0.00019395,2]
[346380403,1734927043452,-500.0,0.00019395,2]
[346380404,1734927043461,-508.29,0.00019395,2]
[346380405,1734927043471,-692.27,0.00019395,2]
[346380406,1734927043480,-500.0,0.00019395,2]
[346380407,1734927043491,-500.0,0.00019395,2]
[346380408,1734927043500,-500.0,0.00019395,2]
[346380409,1734927043510,-500.0,0.00019395,2]
[346380410,1734927043519,-500.0,0.00019395,2]
[346380411,1734927043529,-20000.0,0.000194,2]
[346380413,1734927043538,-20000.0,0.000194,5]
[346380415,1734927043548,-20000.0,0.000194,3]
[346380417,1734927043557,-2100.66679364,0.000194,2]
[346380419,1734927043567,-270.24679437,0.00019402,2]
[346380421,1734927043576,-150.0,0.00019411,4]
[346380422,1734927043585,-150.0,0.00019411,4]
[346380424,1734927043595,-2100.66679364,0.00019433,2]
[346380427,1734927043604,-500.0,0.00019442,2]
[346380429,1734927043614,-500.0,0.00019443,2]
[346380431,1734927043624,-500.0,0.00019443,2]
[346380433,1734927043633,-2000.0,0.00019443,2]
[346380435,1734927043642,-500.0,0.00019443,2]
[346380437,1734927043651,-500.0,0.00019443,2]
[346380439,1734927043661,-500.0,0.00019443,2]
[346380441,1734927043671,-200.0,0.00019443,2]
[346380442,1734927043680,-3870.14861233,0.00019449,2]
[346380445,1734927043689,-270.24679436,0.00019451,2]
[346380447,1734927043699,-308.80179508,0.00019452,2]
[346380449,1734927043709,-3870.14861233,0.00019452,2]
[346380451,1734927043718,-3870.14861233,0.00019454,2]
[346380453,1734927043727,-2140.80873072,0.00019454,2]
[346380455,1734927043737,-308.80179508,0.00019458,2]
[346380457,1734927043746,-308.80179508,0.00019461,2]
[346380458,1734927043756,-7550.008,0.00019463,2]
[346380459,1734927043765,-329.251,0.00019463,2]
[346380460,1734927043775,-2100.66679364,0.00019467,2]
[346380461,1734927043785,-308.80179508,0.00019467,2]
[346380462,1734927043794,-3870.14861233,0.00019468,2]
[346380463,1734927043804,-308.80179508,0.00019472,2]
[346380464,1734927043814,-2140.80873072,0.00019477,2]
[346380465,1734927043823,-200.0,0.00019479,2]
[346380466,1734927043834,-5800.0,0.00019491,2]
[346380467,1734927043844,-3870.14861233,0.00019492,2]
[346380468,1734927043854,-500.0,0.00019498,2]
[346380469,1734927043863,-3729.72,0.00019499,2]
[346380470,1734927043873,-441.45082537,0.00019499,2]
[346380471,1734927043882,-1053.31,0.00019499,2]
[346380472,1734927043892,-500.0,0.00019499,2]
[346380473,1734927043901,-705.25,0.00019499,2]
[346380474,1734927043910,-773.75,0.00019499,2]
[346380475,1734927043919,-1334.68,0.00019499,2]
[346380476,1734927043929,-2164.28,0.00019499,2]
[346380477,1734927043939,-500.0,0.00019499,2]
[346380478,1734927043950,-1567.03,0.00019499,2]
[346380479,1734927043959,-1233.27,0.00019499,2]
[346380480,1734927043968,-758.93,0.00019499,2]
[346380481,1734927043978,-1636.4,0.00019499,2]
[346380482,1734927043988,-1488.18,0.00019499,2]
[346380483,1734927043997,-2547.15,0.00019499,2]
[346380484,1734927044007,-3279.44,0.00019499,2]
[346380485,1734927044016,-16440.46,0.00019499,2]
[346380486,1734927044027,-2034.16,0.00019499,2]
[346380487,1734927044036,-1166.17,0.00019499,2]
[346380488,1734927044046,-500.0,0.00019499,2]
[346380489,1734927044055,-2279.46,0.00019499,2]
[346380490,1734927044065,-12784.47,0.00019499,2]
[346380491,1734927044075,-527.85,0.00019499,2]
[346380492,1734927044084,-1374.87,0.00019499,2]
[346380493,1734927044094,-1721.7,0.00019499,2]
[346380494,1734927044103,-1047.23,0.00019499,2]
[346380495,1734927044113,-2353.36,0.00019499,2]
[346380496,1734927044122,-500.0,0.00019499,2]
[346380497,1734927044131,-500.0,0.00019499,2]
[346380498,1734927044141,-1182.82,0.00019499,2]
[346380499,1734927044151,-3870.14861233,0.00019499,2]
[346380500,1734927044160,-441.45082535,0.00019499,2]
[346380501,1734927044169,-441.45082535,0.00019499,2]
[346380502,1734927044179,-308.80179508,0.000195,2]
[346380503,1734927044188,-441.45082535,0.000195,2]
[346380504,1734927044198,-441.45082535,0.000195,2]
[346380505,1734927044208,-441.45082535,0.000195,2]
[346380506,1734927044217,-150000.000001,0.000195,2]
[346380507,1734927044226,-5800.0,0.000195,2]
[346380508,1734927044235,-162.77036397,0.000195,2]
[346380509,1734927044244,-168.88331867,0.000195,2]
[346380510,1734927044253,-2140.80873072,0.000195,2]
[346380511,1734927044262,-441.45082535,0.000195,2]
[346380512,1734927044273,-2100.66679364,0.000195,2]
[346380513,1734927044285,-164.25579756,0.000195,2]
[346380514,1734927044295,-164.25579756,0.000195,2]
[346380515,1734927044306,-164.25,0.000195,2]
[346380516,1734927044316,-680.56961263,0.000195,2]
[346380517,1734927044325,-15571.33166111,0.000195,2]
[346380518,1734927044335,-166.90239965,0.000195,2]
[346380519,1734927044344,-270.24679436,0.000195,2]
[346380520,1734927044354,-201.39233801,0.000195,3]
[346380521,1734927044363,-13434.14200064,0.000195,2]
[346380522,1734927044372,-150.0,0.000195,4]
[346380523,1734927044383,-500.0,0.00019502,2]
[346380524,1734927044392,-500.0,0.00019502,2]
[346380525,1734927044402,-500.0,0.00019502,2]
[346380526,1734927044411,-500.0,0.00019502,2]
[346380527,1734927044420,-500.0,0.00019502,2]
[346380528,1734927044429,-439.2466,0.00019502,2]
[346380529,1734927044438,-1000.0,0.00019502,2]
[346380530,1734927044447,-1000.0,0.00019502,2]
[346380531,1734927044456,-1000.0,0.00019502,2]
[346380532,1734927044465,-1000.0,0.00019502,2]
[346380533,1734927044474,-1000.0,0.00019502,2]
[346380534,1734927044484,-1000.0,0.00019502,2]
[346380535,1734927044493,-1000.0,0.00019502,2]
[346380536,1734927044503,-1000.0,0.00019502,2]
[346380537,1734927044512,-1000.0,0.00019502,2]
[346380538,1734927044521,-1000.0,0.00019502,2]
[346380539,1734927044531,-1000.0,0.00019502,2]
[346380540,1734927044541,-1000.0,0.00019502,2]
[346380541,1734927044550,-1000.0,0.00019502,2]
[346380542,1734927044559,-1000.0,0.00019502,2]
[346380543,1734927044568,-1000.0,0.00019502,2]
[346380544,1734927044577,-1000.0,0.00019502,2]
[346380545,1734927044586,-1000.0,0.00019502,2]
[346380546,1734927044596,-1000.0,0.00019502,2]
[346380547,1734927044605,-1000.0,0.00019502,2]
[346380548,1734927044614,-1000.0,0.00019502,2]
[346380549,1734927044623,-1000.0,0.00019502,2]
[346380550,1734927044632,-1000.0,0.00019502,2]
[346380551,1734927044641,-1000.0,0.00019502,2]
[346380552,1734927044650,-1000.0,0.00019502,2]
[346380553,1734927044659,-1000.0,0.00019502,2]
[346380554,1734927044669,-1000.0,0.00019502,2]
[346380555,1734927044678,-1000.0,0.00019502,2]
[346380556,1734927044687,-1000.0,0.00019502,2]
[346380557,1734927044696,-1000.0,0.00019502,2]
[346380558,1734927044705,-1000.0,0.00019502,2]
[346380559,1734927044714,-1000.0,0.00019502,2]
[346380560,1734927044723,-1000.0,0.00019502,2]
[346380561,1734927044732,-1000.0,0.00019502,2]
[346380562,1734927044741,-1000.0,0.00019502,2]
[346380563,1734927044751,-1000.0,0.00019502,2]
[346380564,1734927044759,-1000.0,0.00019502,2]
[346380565,1734927044768,-1000.0,0.00019502,2]
[346380566,1734927044777,-1000.0,0.00019502,2]
[346380567,1734927044786,-1000.0,0.00019502,2]
[346380568,1734927044795,-1000.0,0.00019502,2]
[346380569,1734927044804,-1000.0,0.00019502,2]
[346380570,1734927044813,-1000.0,0.00019502,2]
[346380571,1734927044826,-912.9907,0.00019502,2]
[346380572,1734927044836,-258.81,0.00019508,2]
[346380573,1734927044845,-167.93347931,0.00019509,2]
[346380574,1734927044854,-1056.0,0.00019522,2]
[346380575,1734927044863,-4221.51,0.0001955,4]
[346380576,1734927044872,-1415.0,0.00019562,2]
[346380577,1734927044882,-255.337,0.00019565,2]
[346380578,1734927044891,-1899.0,0.00019565,2]
[346380579,1734927044901,-3791.847,0.00019565,2]
[346380580,1734927044910,-834.0,0.00019565,2]
[346380581,1734927044919,-1256.0,0.00019565,2]
[346380582,1734927044929,-996.637,0.00019565,2]
[346380583,1734927044938,-3682.0,0.00019565,2]
[346380584,1734927044947,-536.0,0.00019565,2]
[346380585,1734927044957,-500.0,0.00019573,2]
[346380586,1734927044966,-502.91161031,0.00019573,2]
[346380587,1734927044976,-500.83205175,0.00019573,2]
[346380588,1734927044986,-161.40832527,0.00019573,2]
[346380589,1734927044995,-500.0,0.00019573,2]
[346380590,1734927045005,-505.48268446,0.00019573,2]
[346380591,1734927045015,-164.08468289,0.00019573,2]
[346380592,1734927045026,-500.0,0.00019573,2]
[346380593,1734927045036,-634.71032386,0.00019573,2]
[346380594,1734927045045,-150.0,0.00019589,4]
[346380595,1734927045055,-150.0,0.00019589,4]
[346380596,1734927045065,-150.0,0.00019589,4]
[346380597,1734927045074,-150.0,0.00019589,4]
[346380598,1734927045084,-5200.0,0.0001959,29]
[346380599,1734927045094,-2700.0,0.0001959,2]
[346380600,1734927045103,-444.122313,0.00019596,2]
[346380601,1734927045113,-444.122313,0.00019596,2]
[346380602,1734927045122,-444.122313,0.00019596,2]
[346380603,1734927045132,-444.122313,0.00019596,2]
[346380604,1734927045142,-444.122313,0.00019596,2]
[346380605,1734927045151,-444.122313,0.00019596,3]
[346380606,1734927045160,-444.122313,0.00019596,3]
[346380607,1734927045169,-444.122313,0.00019596,3]
[346380608,1734927045179,-444.122313,0.00019596,3]
[346380609,1734927045257,-444.122313,0.00019596,3]
[346380610,1734927045268,-444.122313,0.00019597,3]
[346380611,1734927045282,-444.122313,0.00019597,3]
[346380612,1734927045291,-444.122313,0.00019597,3]
[346380613,1734927045301,-444.122313,0.00019597,3]
[346380614,1734927045310,-444.122313,0.00019597,3]
[346380615,1734927045319,-444.122313,0.00019597,2]
[346380616,1734927045329,-444.122313,0.00019597,2]
[346380617,1734927045338,-444.122313,0.00019597,2]
[346380618,1734927045347,-444.122313,0.00019597,2]
[346380619,1734927045357,-444.122313,0.00019597,2]
[346380620,1734927045367,-444.122313,0.00019598,2]
[346380621,1734927045376,-444.122313,0.00019598,2]
[346380622,1734927045386,-444.122313,0.00019598,2]
[346380623,1734927045395,-444.122313,0.00019598,2]
[346380624,1734927045405,-444.122313,0.00019598,2]
[346380625,1734927045414,-444.122313,0.00019598,3]
[346380626,1734927045424,-444.122313,0.00019598,3]
[346380627,1734927045433,-444.122313,0.00019598,3]
[346380628,1734927045442,-444.122313,0.00019598,3]
[346380629,1734927045452,-444.122313,0.00019598,3]
[346380630,1734927045461,-268.99286703,0.00019598,2]
[346380631,1734927045470,-159689.179841,0.00019599,2]
[346380632,1734927045479,-735.85,0.00019599,2]
[346380633,1734927045490,-3749.95,0.00019599,2]
[346380634,1734927045499,-1133.92,0.00019599,2]
[346380635,1734927045508,-1246.09,0.00019599,2]
[346380636,1734927045517,-3633.66,0.00019599,2]
[346380637,1734927045527,-26984.5997021,0.00019599,7]
[346380638,1734927045536,-1945.2,0.00019599,2]
[346380639,1734927045545,-1000.0,0.00019599,2]
[346380640,1734927045554,-1000.0,0.00019599,2]
[346380641,1734927045563,-1000.0,0.00019599,2]
[346380642,1734927045572,-1000.0,0.00019599,2]
[346380643,1734927045582,-1000.0,0.00019599,2]
[346380644,1734927045591,-1000.0,0.00019599,2]
[346380645,1734927045600,-1000.0,0.00019599,2]
[346380646,1734927045608,-1000.0,0.00019599,2]
[346380647,1734927045618,-1000.0,0.00019599,2]
[346380648,1734927045627,-300.0,0.00019599,2]
[346380649,1734927045636,-666.0,0.00019599,2]
[346380650,1734927045645,-300.0,0.00019599,2]
[346380651,1734927045654,-666.0,0.00019599,2]
[346380652,1734927045665,-1801.0,0.00019599,2]
[346380653,1734927045674,-16188.02673616,0.000196,2]
[346380654,1734927045683,-29716.83646219,0.000196,3]
[346380655,1734927045692,-2258110.83600832,0.000196,3]
[346380656,1734927045701,-9826841.03523122,0.000196,2]
[346380658,1734927046095,-26371.319,0.000196,2]
[346380659,1734927046385,-313.94567625,0.00019599,2]
[346380660,1734927046405,-686.05432375,0.00019599,2]
[346380661,1734927046414,-1059.14567625,0.000196,2]
[346380662,1734927046426,-2631.01595791,0.000196,2]
[346380663,1734927046542,-1181.43300001,0.000196,2]
[346380664,1734927046566,-268.13583273,0.000196,2]
[346380665,1734927046581,-2246.5197351,0.000196,2]
[346380666,1734927046592,-335.16499998,0.000196,2]
[346380667,1734927046603,-977.12603338,0.000196,2]
[346380668,1734927046614,-40432.8231025,0.000196,2]
[346380670,1734927046701,-828.88631998,0.000196,2]
[346380671,1734927046713,-1109.999995,0.000196,2]
[346380672,1734927046724,-9096.64373114,0.000196,2]
[346380673,1734927046735,-8947.21879473,0.000196,2]
[346380674,1734927046746,-8943.78386462,0.000196,2]
[346380675,1734927046758,-9077.54866152,0.000196,2]
[346380676,1734927046769,-8943.84023489,0.000196,2]
[346380677,1734927047390,-519.34658384,0.00019599,2]
[346380678,1734927047402,-366.09,0.00019599,2]
[346380679,1734927047414,-114.56341616,0.00019599,2]
[346380680,1734927047424,-1000.0,0.00019599,2]
[346380681,1734927047435,-1000.0,0.00019599,2]
[346380682,1734927047446,-1000.0,0.00019599,2]
[346380683,1734927047456,-3700.90658384,0.000196,2]
[346380684,1734927047472,-500.0,0.000196,2]
[346380685,1734927047556,-60.41384629,0.00019599,2]
[346380686,1734927047572,-594.05080835,0.00019599,2]
[346380687,1734927047977,-345.53534536,0.00019599,2]
[346380688,1734927047987,-1000.0,0.00019599,2]
[346380689,1734927047997,-1000.0,0.00019599,2]
[346380690,1734927048007,-1000.0,0.00019599,2]
[346380691,1734927048017,-1000.0,0.00019599,2]
[346380692,1734927048027,-1000.0,0.00019599,2]
[346380693,1734927048037,-1000.0,0.00019599,2]
[346380694,1734927048047,-1000.0,0.00019599,2]
[346380695,1734927048057,-1000.0,0.00019599,2]
[346380696,1734927048067,-963.00167803,0.00019599,2]
[346380697,1734927048076,-368413.60949719,0.000196,2]
[346380698,1734927048093,-2962.05382274,0.000196,2]
[346380699,1734927048104,-2351.63147196,0.000196,2]
[346380700,1734927050527,154.8,0.00018968,30]
[346380706,1734927404450,450.0,0.00013,2]
[346380707,1734927697473,30000.0,0.00013,2]
[346380708,1734927802375,274.08,0.00010137,2]
[346380709,1734927922099,154.8,0.00017734,30]
[346380710,1734927954710,1958.41360169,0.0002,30]
[346380714,1734928163152,-152.8,0.00013699,2]
[346380715,1734928163175,-500.0,0.00015,2]
[346380716,1734928163195,-3277.71246,0.000154,2]
[346380738,1734928232367,-1535.79576675,0.000154,2]
[346380741,1734928232426,-23.09159992,0.000154,2]
[346380742,1734928232436,-274.08,0.00016813,2]
[346380743,1734928232445,-550.0,0.00017,2]
[346380744,1734928232455,-250.0,0.00017541,2]
[346380745,1734928232464,-1057.18,0.00017558,2]
[346380746,1734928232473,-876.57478948,0.00017561,2]
[346380747,1734928232485,-894.00521052,0.00017561,2]
[346380748,1734928232494,-250.0,0.00017588,2]
[346380749,1734928232504,-150.0,0.00017729,2]
[346380750,1734928232515,-150.0,0.00017729,2]
[346380751,1734928232524,-150.0,0.00017729,2]
[346380752,1734928232533,-150.0,0.00017729,2]
[346380753,1734928232542,-369.27765263,0.00018336,2]
[346380754,1734928232559,-62.98234737,0.00018336,2]
[346380755,1734928232569,-432.26,0.00018341,2]
[346380756,1734928232578,-432.26,0.00018346,2]
[346380757,1734928232588,-432.26,0.00018351,2]
[346380758,1734928232597,-432.26,0.00018356,2]
[346380759,1734928232606,-432.26,0.00018361,2]
[346380760,1734928232618,-432.26,0.00018365,2]
[346380761,1734928232628,-16612.31845263,0.00018368,2]
[346380762,1734928232719,-133.79154737,0.00018368,2]
[346380763,1734928232728,-432.26,0.0001837,2]
[346380764,1734928232738,-432.26,0.00018375,2]
[346380765,1734928232747,-432.26,0.0001838,2]
[346380766,1734928232758,-403.20343222,0.00018385,2]
[346380767,1734928232769,-29.05656778,0.00018385,2]
[346380768,1734928232779,-432.26,0.00018389,2]
[346380769,1734928232788,-120.54977372,0.00018393,2]
[346380770,1734928232874,-44.31022628,0.00018393,2]
[346380771,1734928232884,-432.26,0.00018394,2]
[346380773,1734928232893,-432.26,0.00018399,2]
[346380775,1734928232902,-432.26,0.00018404,2]
[346380777,1734928232912,-432.26,0.00018409,2]
[346380779,1734928232921,-432.26,0.00018414,2]
[346380781,1734928232931,-432.26,0.00018418,2]
[346380782,1734928232940,-432.26,0.00018423,2]
[346380785,1734928232950,-432.26,0.00018428,2]
[346380786,1734928232959,-1000.0,0.00018434,2]
[346380788,1734928232969,-674.95,0.00018584,2]
[346380790,1734928232978,-228.369,0.0001862,2]
[346380792,1734928232988,-2473.0,0.00018622,2]
[346380794,1734928232997,-203.71,0.00018655,2]
[346380796,1734928233007,-150.0,0.00018714,2]
[346380797,1734928233016,-3295.38787933,0.000189,2]
[346380798,1734928233026,-226.85653755,0.000189,2]
[346380799,1734928233036,-166.90239965,0.000189,2]
[346380800,1734928233045,-201.39233801,0.000189,3]
[346380801,1734928233055,-32161.9721,0.000189,2]
[346380802,1734928233066,-19327.94157304,0.000189,2]
[346380803,1734928233075,-4478.04733356,0.000189,2]
[346380804,1734928233088,-270.24679436,0.000189,2]
[346380805,1734928233098,-441.45082537,0.00018941,2]
[346380806,1734928233108,-3295.38787931,0.00018967,2]
[346380807,1734928233118,-161.40832527,0.00018973,2]
[346380808,1734928233128,-500.0,0.00018973,2]
[346380809,1734928233137,-505.48268446,0.00018973,2]
[346380810,1734928233147,-500.0,0.00018973,2]
[346380811,1734928233157,-500.0,0.00018973,2]
[346380812,1734928233167,-634.71032386,0.00018973,2]
[346380813,1734928233176,-170.24,0.0001899,2]
[346380814,1734928233186,-292.75,0.0001899,2]
[346380815,1734928233195,-292.75,0.0001899,2]
[346380816,1734928233205,-292.75,0.0001899,2]
[346380817,1734928233214,-292.75,0.0001899,2]
[346380818,1734928233224,-292.75,0.0001899,2]
[346380819,1734928233236,-500.0,0.00018999,2]
[346380820,1734928233246,-500.0,0.00018999,2]
[346380821,1734928233256,-586.25355443,0.00018999,2]
[346380822,1734928233268,-600.0,0.00019,2]
[346380823,1734928233278,-102301.60438211,0.00019,2]
[346380824,1734928233291,-315000.00000713,0.00019,2]
[346380825,1734928233303,-336754.30568198,0.00019,2]
[346380828,1734928238294,-791.7,0.00015642,2]
[346380829,1734928238303,-704.40693517,0.00017906,2]
[346380830,1734928238316,-87.29306483,0.00017906,2]
[346380831,1734928238326,-1981.95132317,0.00019,2]